bitfinex/quotes_SOLUSD_20250506
["timestamp","ask_amount","ask_price","bid_price","bid_amount"]
[1746546481341,14.7,143.69,143.67,32.65582387]
[1746546482465,14.7,143.69,143.68,32.65582387]
[1746546482768,61.7777153,143.73,143.68,32.65582387]
[1746546483079,14.7,143.72,143.69,32.65582387]
[1746546483762,47.35582387,143.72,143.68,32.65582387]
[1746546484064,6.958458,143.71,143.68,32.65582387]
[1746546486249,54.31428187,143.71,143.67,32.65582387]
[1746546486444,32.65582387,143.7,143.65,46.57582387]
[1746546486771,14.7,143.69,143.65,32.65582387]
[1746546487476,47.35582387,143.69,143.63,6.9622026]
[1746546487668,32.65582387,143.68,143.64,32.65582387]
[1746546487856,47.35582387,143.69,143.65,32.65582387]
[1746546488475,14.7,143.69,143.66,32.65582387]
[1746546488776,14.7,143.69,143.67,32.65582387]
[1746546488946,21.65950063,143.69,143.66,32.65582387]
[1746546490269,32.65582387,143.68,143.63,6.96221814]
[1746546490474,21.65950063,143.69,143.65,32.65582387]
[1746546490652,21.65950063,143.69,143.66,32.65582387]
[1746546492370,21.65950063,143.69,143.65,32.65582387]
[1746546492777,14.7,143.69,143.67,32.65582387]
[1746546493572,14.7,143.69,143.68,32.65582387]
[1746546493768,14.1,143.71,143.65,24.36442518]
[1746546493971,14.1,143.71,143.69,32.65582387]
[1746546494865,21.65810183,143.72,143.7,32.65582387]
[1746546494866,14.7,143.72,143.7,32.65582387]
[1746546495074,6.95716333,143.74,143.71,32.65582387]
[1746546495245,6.95716333,143.74,143.7,32.65582387]
[1746546495673,6.95716333,143.74,143.71,32.65582387]
[1746546496348,6.95716333,143.74,143.68,14.9287586]
[1746546496674,6.95716333,143.74,143.71,32.65582387]
[1746546498649,6.95716333,143.74,143.68,14.92878083]
[1746546498650,32.65582387,143.73,143.68,7.9691]
[1746546498987,14.7,143.72,143.7,32.65582387]
[1746546499378,14.7,143.72,143.68,14.9289966]
[1746546499379,14.7,143.72,143.71,32.65582387]
[1746546499674,14.7,143.75,143.71,32.65582387]
[1746546499858,6.95635476,143.76,143.73,32.65582387]
[1746546500265,6.95635476,143.76,143.72,32.65582387]
[1746546500859,6.95635476,143.76,143.73,32.65582387]
[1746546501079,6.95635476,143.76,143.74,32.65582387]
[1746546501383,6.95635476,143.76,143.68,25.36887728]
[1746546501384,32.65582387,143.75,143.69,6.95942654]
[1746546501555,32.65582387,143.75,143.71,32.65582387]
[1746546502363,6.9570057,143.74,143.71,32.65582387]
[1746546506675,6.9570057,143.74,143.7,32.65582387]
[1746546506676,39.61282957,143.74,143.7,32.65582387]
[1746546506876,32.65582387,143.73,143.68,7.9691]
[1746546507186,32.65582387,143.73,143.69,32.65582387]
[1746546507480,39.61282957,143.74,143.7,32.65582387]
[1746546508179,39.61282957,143.74,143.68,14.92897101]
[1746546508587,39.61282957,143.74,143.7,32.65582387]
[1746546510984,54.31282957,143.74,143.7,32.65582387]
[1746546511184,54.31282957,143.74,143.68,14.92877337]
[1746546511388,54.31282957,143.74,143.69,32.65582387]
[1746546511890,32.65582387,143.73,143.69,32.65582387]
[1746546512387,54.31282957,143.74,143.69,39.61512831]
[1746546512595,54.31282957,143.74,143.7,32.65582387]
[1746546512886,54.31282957,143.74,143.69,32.65582387]
[1746546513986,42.0453547,143.74,143.69,27.34770972]
[1746546514292,14.7,143.74,143.71,20.388349]
[1746546514478,14.7,143.74,143.72,20.388349]
[1746546514681,21.6562672,143.76,143.72,20.388349]
[1746546515484,42.0446162,143.76,143.72,20.388349]
[1746546515681,54.26648919,143.76,143.72,32.61022199]
[1746546516291,32.61022199,143.75,143.7,32.61022199]
[1746546517771,6.9570057,143.74,143.7,32.61022199]
[1746546518490,32.61022199,143.75,143.71,32.61022199]
[1746546518491,6.95669577,143.75,143.71,32.61022199]
[1746546519081,21.65618787,143.76,143.72,32.61022199]
[1746546519288,21.65618787,143.76,143.73,32.61022199]
[1746546519591,21.65618787,143.76,143.72,32.61022199]
[1746546519592,54.26640986,143.76,143.72,32.61022199]
[1746546519772,32.61022199,143.75,143.7,32.61022199]
[1746546519970,39.56722769,143.74,143.7,32.61022199]
[1746546520572,39.56722769,143.74,143.69,6.95933122]
[1746546520893,39.56722769,143.74,143.7,32.61022199]
[1746546521089,6.9570057,143.74,143.7,32.61022199]
[1746546521296,6.9570057,143.74,143.71,32.61022199]
[1746546523593,6.9570057,143.74,143.7,32.61022199]
[1746546524098,6.9570057,143.74,143.69,6.9590798]
[1746546524284,6.9570057,143.74,143.7,32.61022199]
[1746546524895,6.9570057,143.74,143.71,32.61022199]
[1746546525996,6.95668585,143.75,143.71,32.61022199]
[1746546526489,21.65612678,143.76,143.72,32.61022199]
[1746546527292,54.26634877,143.76,143.72,32.61022199]
[1746546527491,32.61022199,143.75,143.69,6.95942654]
[1746546527789,32.61022199,143.75,143.71,32.61022199]
[1746546528296,54.26634877,143.76,143.71,32.61022199]
[1746546528497,21.65612678,143.76,143.73,32.61022199]
[1746546528801,6.95612678,143.76,143.73,32.61022199]
[1746546530290,21.65576716,143.77,143.73,32.61022199]
[1746546530601,14.7,143.77,143.74,32.61022199]
[1746546531095,14.7,143.77,143.75,32.61022199]
[1746546532098,21.65557357,143.77,143.74,32.61022199]
[1746546532904,14.7,143.77,143.74,32.61022199]
[1746546533086,14.7,143.77,143.74,39.56722298]
[1746546533402,14.7,143.77,143.74,32.61022199]
[1746546533403,21.65556197,143.77,143.74,32.61022199]
[1746546533584,14.7,143.77,143.74,32.61022199]
[1746546534309,14.7,143.77,143.74,39.56716625]
[1746546534491,14.7,143.77,143.74,32.61022199]
[1746546534702,21.65563288,143.77,143.74,32.61022199]
[1746546534990,32.95526058,143.78,143.74,32.61022199]
[1746546535200,32.95526058,143.78,143.75,32.61022199]
[1746546535505,65.56548257,143.78,143.74,32.61022199]
[1746546535710,53.33154637,143.78,143.7,6.95894224]
[1746546535895,20.37628579,143.77,143.73,20.37628579]
[1746546536407,20.37628579,143.77,143.72,20.37628579]
[1746546536982,20.37628579,143.77,143.7,6.95894224]
[1746546537183,20.37628579,143.76,143.72,20.37628579]
[1746546537713,6.95652173,143.75,143.72,20.37628579]
[1746546538005,6.95626219,143.76,143.73,20.37628579]
[1746546539111,14.7,143.77,143.74,20.37628579]
[1746546539308,21.65565071,143.77,143.74,20.37628579]
[1746546539506,20.37628579,143.76,143.72,20.37628579]
[1746546540606,42.0319365,143.77,143.72,27.3342077]
[1746546540989,42.0319365,143.77,143.73,20.37628579]
[1746546541407,42.0319365,143.77,143.72,20.37628579]
[1746546541593,20.37628579,143.76,143.72,20.37628579]
[1746546541795,6.95642693,143.76,143.72,20.37628579]
[1746546542519,6.95642693,143.76,143.73,20.37628579]
[1746546544107,21.65575753,143.77,143.73,20.37628579]
[1746546544288,14.7,143.77,143.75,20.37628579]
[1746546544688,21.65572608,143.77,143.74,20.37628579]
[1746546545512,21.65572608,143.77,143.73,35.38393676]
[1746546545813,21.65572608,143.77,143.73,28.42658579]
[1746546546812,21.65572608,143.77,143.73,35.38401712]
[1746546547001,14.7,143.77,143.74,20.37628579]
[1746546547409,21.65561506,143.77,143.74,20.37628579]
[1746546548721,42.03190085,143.77,143.73,8.0503]
[1746546548927,42.03190085,143.77,143.73,6.4649]
[1746546549228,21.65561506,143.77,143.73,26.84118579]
[1746546549390,42.03105432,143.79,143.74,20.37628579]
[1746546549724,21.65476853,143.79,143.76,20.37628579]
[1746546550315,14.7,143.81,143.78,20.37628579]
[1746546550518,21.65285268,143.83,143.79,20.37628579]
[1746546551721,42.02913847,143.83,143.78,20.37628579]
[1746546552010,21.65285268,143.83,143.79,20.37628579]
[1746546552417,42.02913847,143.83,143.78,20.37628579]
[1746546552605,42.02913847,143.83,143.79,20.37628579]
[1746546552802,20.37628579,143.82,143.76,6.95580731]
[1746546552986,20.37628579,143.82,143.78,20.37628579]
[1746546553396,20.37628579,143.8,143.75,1.5298]
[1746546553598,6.95458654,143.79,143.76,20.37628579]
[1746546554699,6.95434197,143.8,143.77,20.37628579]
[1746546555509,6.95434197,143.8,143.75,8.48627261]
[1746546555722,6.95434197,143.8,143.76,20.37628579]
[1746546557020,27.33062776,143.8,143.76,20.37628579]
[1746546557202,20.37628579,143.79,143.75,20.37628579]
[1746546558113,6.95507024,143.78,143.75,20.37628579]
[1746546558923,27.33135603,143.78,143.74,20.37628579]
[1746546559299,6.95507024,143.78,143.75,20.37628579]
[1746546559810,14.7,143.79,143.77,20.37628579]
[1746546561825,21.6546703,143.79,143.76,20.37628579]
[1746546562029,21.6546703,143.79,143.75,20.37628579]
[1746546562030,6.9546703,143.79,143.75,20.37628579]
[1746546562527,27.33095609,143.79,143.74,20.37628579]
[1746546563830,14.12,143.8,143.76,20.37628579]
[1746546564415,14.12,143.8,143.77,20.37628579]
[1746546565323,27.33008802,143.81,143.77,20.37628579]
[1746546566612,21.65325525,143.82,143.78,20.37628579]
[1746546566937,32.95236641,143.84,143.81,20.37628579]
[1746546567235,27.3286522,143.84,143.8,20.37628579]
[1746546567531,27.3286522,143.84,143.78,6.1011]
[1746546567835,6.95236641,143.84,143.8,20.37628579]
[1746546568433,27.3286522,143.84,143.8,20.37628579]
[1746546568813,27.3286522,143.84,143.79,20.37628579]
[1746546569335,27.3286522,143.84,143.78,13.05606649]
[1746546569517,27.3286522,143.84,143.79,20.37628579]
[1746546571032,27.3286522,143.84,143.78,13.05606649]
[1746546571230,27.3286522,143.84,143.79,20.37628579]
[1746546572931,20.37628579,143.83,143.79,20.37628579]
[1746546573137,6.95313586,143.82,143.79,20.37628579]
[1746546575131,20.37628579,143.83,143.79,20.37628579]
[1746546575132,6.95289243,143.83,143.79,20.37628579]
[1746546575324,6.95289243,143.83,143.8,20.37628579]
[1746546576409,6.95238187,143.84,143.8,20.37628579]
[1746546576821,27.32866766,143.84,143.8,20.37628579]
[1746546577035,6.95238187,143.84,143.81,20.37628579]
[1746546577233,6.95185948,143.85,143.81,20.37628579]
[1746546577636,6.95185948,143.85,143.82,20.37628579]
[1746546577817,14.7,143.86,143.83,20.37628579]
[1746546577818,21.65133693,143.86,143.83,20.37628579]
[1746546578427,21.65133693,143.86,143.82,20.37628579]
[1746546579346,42.02762272,143.86,143.82,20.37628579]
[1746546580029,42.02762272,143.86,143.8,6.95393328]
[1746546580030,42.02762272,143.86,143.81,20.37628579]
[1746546580841,20.37628579,143.85,143.81,20.37628579]
[1746546581848,27.32840686,143.85,143.81,20.37628579]
[1746546582446,27.32840686,143.85,143.78,6.1011]
[1746546582650,20.37628579,143.84,143.8,20.37628579]
[1746546583028,27.32840686,143.85,143.8,20.37628579]
[1746546584245,27.32840686,143.85,143.81,20.37628579]
[1746546584439,42.02840686,143.85,143.81,20.37628579]
[1746546584943,20.37628579,143.84,143.8,20.37628579]
[1746546586643,6.95265243,143.83,143.78,13.05598523]
[1746546587046,6.95265243,143.83,143.79,20.37628579]
[1746546588142,27.32893822,143.83,143.79,20.37628579]
[1746546588446,27.32893822,143.83,143.78,26.47738579]
[1746546588830,27.32893822,143.83,143.78,68.33738579]
[1746546589030,20.37628579,143.82,143.78,6.1011]
[1746546589930,6.95361935,143.81,143.78,6.1011]
[1746546590142,6.95361935,143.81,143.77,22.01568579]
[1746546591526,27.32990514,143.81,143.77,22.01568579]
[1746546593657,6.95361935,143.81,143.78,20.37628579]
[1746546595155,6.95361935,143.81,143.77,22.01568579]
[1746546595452,27.32990514,143.81,143.77,20.37628579]
[1746546595664,20.37628579,143.79,143.75,26.74338579]
[1746546595855,20.37628579,143.8,143.76,20.37628579]
[1746546596460,42.02990514,143.81,143.77,20.37628579]
[1746546597437,20.37628579,143.8,143.75,6.3671]
[1746546597759,20.37628579,143.8,143.76,20.37628579]
[1746546599362,6.95458654,143.79,143.76,20.37628579]
[1746546600554,35.07628579,143.81,143.77,20.37628579]
[1746546600739,14.7,143.81,143.77,20.37628579]
[1746546601060,35.07628579,143.81,143.77,20.37628579]
[1746546601239,20.37628579,143.8,143.76,20.37628579]
[1746546601582,6.95458654,143.79,143.75,26.74338579]
[1746546601743,6.95458654,143.79,143.76,20.37628579]
[1746546602255,35.07628579,143.81,143.77,20.37628579]
[1746546603057,20.37628579,143.8,143.76,20.37628579]
[1746546603855,6.95458654,143.79,143.76,20.37628579]
[1746546604363,6.954349,143.8,143.76,20.37628579]
[1746546606365,6.954349,143.8,143.75,13.32360283]
[1746546606568,6.954349,143.8,143.76,20.37628579]
[1746546606859,42.03013144,143.81,143.77,20.37628579]
[1746546607064,21.65384565,143.81,143.77,20.37628579]
[1746546607367,42.03013144,143.81,143.77,20.37628579]
[1746546608163,21.65384565,143.81,143.77,20.37628579]
[1746546610142,42.03013144,143.81,143.77,20.37628579]
[1746546610637,63.49781667,143.84,143.79,20.37628579]
[1746546610961,49.11628579,143.84,143.79,20.37628579]
[1746546611353,20.37628579,143.83,143.79,20.37628579]
[1746546611762,6.95279387,143.83,143.79,20.37628579]
[1746546611966,56.06864729,143.84,143.79,27.33084424]
[1746546612265,56.06864729,143.84,143.79,20.37628579]
[1746546615074,56.06864729,143.84,143.8,20.37628579]
[1746546615260,42.02864729,143.84,143.8,20.37628579]
[1746546621682,14.7,143.84,143.82,20.37628579]
[1746546621971,61.07628579,143.87,143.82,20.37628579]
[1746546622369,35.07628579,143.87,143.82,20.37628579]
[1746546622775,6.95147016,143.86,143.82,20.37628579]
[1746546623376,27.32775595,143.86,143.82,20.37628579]
[1746546623882,27.32775595,143.86,143.82,27.32930264]
[1746546624054,6.95147016,143.86,143.82,27.32930264]
[1746546624682,42.02724678,143.87,143.82,27.32930264]
[1746546625083,42.02724678,143.87,143.82,20.37628579]
[1746546625268,42.02724678,143.87,143.82,27.3292952]
[1746546625576,55.98724678,143.87,143.82,27.3292952]
[1746546625784,20.37628579,143.86,143.82,20.37628579]
[1746546626884,27.32751417,143.86,143.82,27.32941979]
[1746546627079,6.95122838,143.86,143.82,27.32941979]
[1746546627378,55.98722904,143.87,143.83,20.37628579]
[1746546627680,81.24665091,143.88,143.84,20.37628579]
[1746546628174,53.32665091,143.88,143.84,20.37628579]
[1746546629766,53.32665091,143.88,143.83,20.37628579]
[1746546630585,27.3271975,143.87,143.83,20.37628579]
[1746546635862,6.95091171,143.87,143.83,13.0239315]
[1746546636077,19.97484321,143.87,143.83,13.0239315]
[1746546637491,13.0239315,143.86,143.81,6.95338722]
[1746546637794,13.0239315,143.86,143.82,13.0239315]
[1746546638169,6.95091171,143.87,143.82,13.0239315]
[1746546638370,19.97484321,143.87,143.83,13.0239315]
[1746546639391,6.95091171,143.87,143.82,6.95303714]
[1746546639591,19.97484321,143.87,143.83,13.0239315]
[1746546640087,19.97484321,143.87,143.82,6.95303714]
[1746546640290,19.97484321,143.87,143.82,19.97696864]
[1746546640497,19.97484321,143.87,143.83,13.0239315]
[1746546642097,6.95091171,143.87,143.83,19.97658045]
[1746546642599,6.95091171,143.87,143.83,13.0239315]
[1746546643600,19.97484321,143.87,143.83,13.0239315]
[1746546645698,13.0239315,143.86,143.81,48.81343821]
[1746546645910,13.0239315,143.86,143.82,13.0239315]
[1746546646608,19.97548492,143.86,143.82,13.0239315]
[1746546648907,13.0239315,143.85,143.8,19.5515315]
[1746546649704,13.0239315,143.85,143.81,13.0239315]
[1746546650075,13.0239315,143.83,143.78,1.5256]
[1746546650280,13.0239315,143.8,143.76,6.0321]
[1746546650488,13.0239315,143.8,143.76,19.0560315]
[1746546650980,6.95458654,143.79,143.76,6.0321]
[1746546651179,6.95458654,143.79,143.75,13.0239315]
[1746546651180,19.97851804,143.79,143.75,13.0239315]
[1746546652189,19.97851804,143.79,143.73,50.47279191]
[1746546652190,13.0239315,143.77,143.72,12.98987187]
[1746546652394,13.0239315,143.77,143.73,13.0239315]
[1746546652601,13.0239315,143.75,143.72,6.0321]
[1746546653301,19.98062549,143.75,143.7,14.6794315]
[1746546653606,13.0239315,143.74,143.7,14.6794315]
[1746546654119,20.38584952,143.74,143.7,22.04134952]
[1746546655279,27.3430727,143.74,143.7,22.04134952]
[1746546656299,20.38584952,143.73,143.69,6.95937447]
[1746546656628,20.38584952,143.73,143.69,20.38584952]
[1746546657806,27.3436309,143.73,143.69,20.38584952]
[1746546658697,6.95778138,143.73,143.7,20.38584952]
[1746546659902,27.3436309,143.73,143.68,12.99180397]
[1746546660112,27.3436309,143.73,143.69,20.38584952]
[1746546661814,6.95778138,143.73,143.7,20.38584952]
[1746546662108,14.7,143.75,143.71,20.38584952]
[1746546662318,14.7,143.75,143.72,20.38584952]
[1746546663298,14.7,143.75,143.73,20.38584952]
[1746546663618,27.34207235,143.76,143.72,20.38584952]
[1746546664819,28.64,143.77,143.75,20.38584952]
[1746546664820,14.7,143.77,143.75,20.38584952]
[1746546665122,21.65558701,143.77,143.74,20.38584952]
[1746546666224,14.7,143.77,143.74,20.38584952]
[1746546666429,21.65557084,143.77,143.74,20.38584952]
[1746546667020,6.95557084,143.77,143.74,20.38584952]
[1746546668149,27.34142036,143.77,143.73,20.38584952]
[1746546669416,27.34142036,143.77,143.68,194.34141773]
[1746546669417,20.38584952,143.75,143.68,164.59544886]
[1746546669633,20.38584952,143.74,143.7,20.38584952]
[1746546671039,27.34299964,143.74,143.7,20.38584952]
[1746546673145,27.34299964,143.74,143.7,27.3447032]
[1746546673463,27.34299964,143.74,143.7,20.38584952]
[1746546673755,20.38584952,143.73,143.69,20.38584952]
[1746546673926,20.38584952,143.73,143.68,28.03164952]
[1746546674331,20.38584952,143.73,143.68,34.99154513]
[1746546674941,20.38584952,143.73,143.69,20.38584952]
[1746546675360,6.95797383,143.72,143.69,20.38584952]
[1746546675844,27.34382335,143.72,143.68,7.6458]
[1746546676063,20.38584952,143.69,143.65,6.96117101]
[1746546676227,20.38584952,143.69,143.65,20.38584952]
[1746546676645,14.7,143.71,143.64,8.2085]
[1746546676646,20.38584952,143.68,143.64,8.2085]
[1746546676843,20.38584952,143.68,143.64,28.59434952]
[1746546677434,27.34597674,143.68,143.64,28.59434952]
[1746546677736,27.34597674,143.68,143.64,8.2085]
[1746546677937,27.34597674,143.68,143.63,13.94]
[1746546678154,6.96012722,143.68,143.61,14.7413139]
[1746546678327,20.38584952,143.66,143.62,20.38584952]
[1746546679224,27.34688117,143.66,143.62,20.38584952]
[1746546680322,27.34631841,143.67,143.62,27.34857733]
[1746546680940,27.34631841,143.67,143.63,20.38584952]
[1746546681342,20.38584952,143.67,143.63,27.34799918]
[1746546681535,27.34591794,143.68,143.63,27.34799918]
[1746546681735,14.7,143.69,143.66,20.38584952]
[1746546681940,20.91912741,143.7,143.68,20.38584952]
[1746546681941,13.96,143.7,143.68,20.38584952]
[1746546682140,14.7,143.72,143.69,20.38584952]
[1746546682438,28.66,143.74,143.71,20.38584952]
[1746546682640,35.61718222,143.74,143.71,20.38584952]
[1746546682842,56.00303174,143.74,143.7,20.38584952]
[1746546683348,14.7,143.76,143.73,20.38584952]
[1746546683541,14.7,143.78,143.75,20.38584952]
[1746546683842,35.08584952,143.78,143.74,20.38584952]
[1746546684342,35.08584952,143.78,143.7,18.64964886]
[1746546684530,42.04112247,143.78,143.72,6.95793077]
[1746546684849,20.38584952,143.74,143.67,7.6631]
[1746546685043,20.38584952,143.71,143.67,28.04894952]
[1746546685222,20.38584952,143.71,143.67,6.1022]
[1746546685418,20.38584952,143.71,143.66,20.38584952]
[1746546685849,20.38584952,143.71,143.66,27.34660227]
[1746546686549,20.38584952,143.7,143.66,20.38584952]
[1746546687441,20.38584952,143.69,143.65,34.32584952]
[1746546687640,20.38584952,143.7,143.66,20.38584952]
[1746546687943,32.63646999,143.7,143.66,32.63646999]
[1746546688146,32.63646999,143.69,143.65,46.57646999]
[1746546688556,32.63646999,143.68,143.65,13.94]
[1746546688848,32.63646999,143.68,143.63,40.9489163]
[1746546689155,32.63646999,143.67,143.63,39.01116999]
[1746546689533,32.63646999,143.67,143.62,6.96253699]
[1746546689733,32.63646999,143.67,143.63,32.63646999]
[1746546690238,39.59703102,143.67,143.63,32.63646999]
[1746546690852,32.63646999,143.66,143.61,20.90316508]
[1746546691154,32.63646999,143.66,143.62,32.63646999]
[1746546691337,32.63646999,143.66,143.61,20.90316508]
[1746546691536,32.63646999,143.66,143.61,46.57646999]
[1746546692058,32.63646999,143.65,143.61,46.57646999]
[1746546692241,6.96056103,143.67,143.61,53.53969422]
[1746546692443,32.63646999,143.66,143.62,32.63646999]
[1746546692646,21.65996932,143.68,143.62,32.63646999]
[1746546692829,32.63646999,143.67,143.63,32.63646999]
[1746546693832,32.63646999,143.67,143.63,39.59873888]
[1746546694456,32.63646999,143.66,143.61,13.94]
[1746546694636,32.63646999,143.66,143.61,53.53970498]
[1746546694841,80.29658998,143.68,143.63,32.63646999]
[1746546695044,32.63646999,143.67,143.63,32.63646999]
[1746546695249,32.63646999,143.67,143.62,32.63646999]
[1746546695453,32.63646999,143.67,143.63,32.63646999]
[1746546695837,39.59696217,143.67,143.63,32.63646999]
[1746546696342,39.59696217,143.67,143.62,39.5990196]
[1746546697137,39.59696217,143.67,143.62,6.96254961]
[1746546697358,32.63646999,143.66,143.62,32.63646999]
[1746546697560,32.63646999,143.66,143.61,20.90310194]
[1746546697860,39.5979069,143.65,143.61,46.57646999]
[1746546698065,6.96143691,143.65,143.61,20.90329199]
[1746546698359,6.96143691,143.65,143.61,53.53976198]
[1746546698658,39.59755648,143.66,143.61,32.63646999]
[1746546698848,32.63646999,143.65,143.6,32.63646999]
[1746546699865,39.59818877,143.65,143.6,39.60024838]
[1746546700066,6.96171878,143.65,143.61,32.63646999]
[1746546700543,39.59818877,143.65,143.61,32.63646999]
[1746546700856,32.63646999,143.65,143.61,32.63646999]
[1746546701063,14.7,143.66,143.63,32.63646999]
[1746546701246,14.7,143.66,143.64,32.63646999]
[1746546701851,14.7,143.66,143.63,32.63646999]
[1746546702248,21.66096823,143.66,143.63,32.63646999]
[1746546702843,54.29743822,143.66,143.61,32.63646999]
[1746546703043,32.63646999,143.65,143.61,32.63646999]
[1746546704051,54.29743822,143.66,143.61,32.63646999]
[1746546704367,32.63646999,143.65,143.61,32.63646999]
[1746546704859,32.63646999,143.64,143.6,32.63646999]
[1746546705549,32.63646999,143.64,143.59,7.7483]
[1746546705864,32.63646999,143.64,143.6,32.63646999]
[1746546706074,6.96233377,143.63,143.59,40.38476999]
[1746546706672,39.59880376,143.63,143.59,32.63646999]
[1746546707437,39.59880376,143.63,143.58,32.63646999]
[1746546707438,32.63646999,143.62,143.58,32.63646999]
[1746546707753,47.33646999,143.62,143.58,32.63646999]
[1746546708180,6.96330339,143.61,143.58,32.63646999]
[1746546708339,39.59977338,143.61,143.57,46.59646999]
[1746546708747,39.59977338,143.61,143.57,39.60163888]
[1746546709066,6.96330339,143.61,143.58,32.63646999]
[1746546709276,54.29945113,143.62,143.58,32.63646999]
[1746546710067,42.08212835,143.62,143.58,20.41914721]
[1746546710461,42.08212835,143.62,143.57,6.96516889]
[1746546710462,42.08212835,143.62,143.56,6.96572861]
[1746546710640,42.08212835,143.62,143.58,20.41914721]
[1746546711370,13.96,143.64,143.61,20.41914721]
[1746546712565,20.92193704,143.64,143.61,20.41914721]
[1746546712762,41.34108425,143.64,143.6,20.41914721]
[1746546713349,20.92193704,143.64,143.6,20.41914721]
[1746546713545,26.0,143.65,143.62,20.41914721]
[1746546713747,34.37914721,143.67,143.63,20.41914721]
[1746546714049,60.37914721,143.67,143.62,20.41914721]
[1746546714569,67.33954256,143.67,143.62,20.41914721]
[1746546715260,67.33954256,143.67,143.63,20.41914721]
[1746546715261,53.37954256,143.67,143.63,20.41914721]
[1746546715465,20.41914721,143.66,143.59,6.964178]
[1746546715774,35.11914721,143.66,143.61,20.41914721]
[1746546716704,6.96184906,143.64,143.61,20.41914721]
[1746546717474,27.38099627,143.64,143.6,20.41914721]
[1746546717659,27.38099627,143.64,143.59,20.41914721]
[1746546717856,20.41914721,143.63,143.58,34.35914721]
[1746546718066,20.41914721,143.62,143.57,20.41914721]
[1746546718772,6.96330339,143.61,143.57,20.41914721]
[1746546719876,6.96330339,143.61,143.57,32.67453216]
[1746546720175,6.96330339,143.61,143.58,32.67453216]
[1746546720373,13.96,143.63,143.6,32.67453216]
[1746546720577,20.92240041,143.63,143.57,32.67453216]
[1746546720788,13.96,143.63,143.6,32.67453216]
[1746546720993,13.96,143.63,143.61,32.67453216]
[1746546721691,20.92243543,143.63,143.6,32.67453216]
[1746546722585,20.92243543,143.63,143.56,24.38005014]
[1746546722586,53.59696759,143.63,143.59,32.67453216]
[1746546722888,53.59696759,143.63,143.58,32.67453216]
[1746546723488,32.67453216,143.61,143.57,32.67453216]
[1746546723984,32.67453216,143.62,143.57,32.67453216]
[1746546724359,35.62243543,143.63,143.55,8.2213793]
[1746546724560,32.67453216,143.62,143.58,32.67453216]
[1746546725055,35.62243543,143.63,143.6,32.67453216]
[1746546725261,13.96,143.63,143.61,32.67453216]
[1746546725483,14.7,143.65,143.62,32.67453216]
[1746546725781,14.7,143.68,143.64,32.67453216]
[1746546725981,47.37453216,143.7,143.66,32.67453216]
[1746546726180,73.37453216,143.7,143.65,32.67453216]
[1746546726377,40.7,143.7,143.65,32.67453216]
[1746546726578,47.65917026,143.7,143.67,32.67453216]
[1746546726966,80.33370242,143.7,143.65,32.67453216]
[1746546727171,54.33370242,143.7,143.66,32.67453216]
[1746546728385,21.65917026,143.7,143.67,32.67453216]
[1746546728678,54.33370242,143.7,143.66,32.67453216]
[1746546730572,54.33370242,143.7,143.64,6.96151166]
[1746546730573,32.67453216,143.69,143.64,32.67453216]
[1746546731717,32.67453216,143.66,143.62,1.6478]
[1746546731867,32.67453216,143.64,143.6,6.4548]
[1746546732286,32.67453216,143.64,143.6,39.12933216]
[1746546732583,32.67453216,143.64,143.6,6.4548]
[1746546733091,32.67453216,143.64,143.6,39.12933216]
[1746546733290,32.67453216,143.64,143.6,6.4548]
[1746546733673,6.96233377,143.63,143.6,6.4548]
[1746546734191,14.7,143.66,143.6,13.41856754]
[1746546734370,39.96,143.67,143.6,13.41856754]
[1746546734371,39.96,143.67,143.63,32.67453216]
[1746546734565,72.63453216,143.67,143.63,32.67453216]
[1746546734771,39.96,143.67,143.63,32.67453216]
[1746546735195,72.63453216,143.67,143.62,32.67453216]
[1746546735389,39.63560576,143.66,143.62,32.67453216]
[1746546735819,6.9610736,143.66,143.62,32.67453216]
[1746546735996,39.63560576,143.66,143.62,32.67453216]
[1746546736807,6.9610736,143.66,143.62,32.67453216]
[1746546737001,46.92062835,143.67,143.63,32.67453216]
[1746546737413,26.0,143.67,143.64,32.67453216]
[1746546737706,32.96048466,143.67,143.64,32.67453216]
[1746546738008,32.96048466,143.67,143.62,6.9627655]
[1746546738198,32.96048466,143.67,143.64,32.67453216]
[1746546739217,65.63501682,143.67,143.63,32.67453216]
[1746546739408,6.96048466,143.67,143.64,32.67453216]
[1746546739706,54.33466364,143.68,143.64,32.67453216]
[1746546740098,54.33466364,143.68,143.61,6.96313237]
[1746546740298,54.33466364,143.68,143.64,32.67453216]
[1746546741394,21.66013148,143.68,143.65,32.67453216]
[1746546741603,54.33466364,143.68,143.64,32.67453216]
[1746546743198,54.33466364,143.68,143.63,32.67453216]
[1746546743199,32.67453216,143.67,143.63,32.67453216]
[1746546743399,32.67453216,143.66,143.62,32.67453216]
[1746546744097,32.67453216,143.65,143.61,32.67453216]
[1746546744790,57.70955762,143.68,143.63,32.67453216]
[1746546745110,21.66013148,143.68,143.64,32.67453216]
[1746546745810,21.66013148,143.68,143.65,32.67453216]